lending/lending_fUSD_20240219
["ID","MTS","AMOUNT","RATE_DAILY","PERIOD"]
[314420195,1708327846892,-214.78381777,0.00038884,4]
[314420196,1708327846901,-533.5923081,0.00038884,4]
[314420197,1708327846910,-253.95804957,0.00038884,4]
[314420198,1708327846919,-522.73473457,0.00038884,4]
[314420199,1708327846929,-547.96715968,0.00038884,4]
[314420200,1708327846938,-500.0,0.00038884,4]
[314420201,1708327846947,-526.05549379,0.00038884,4]
[314420202,1708327846956,-500.0,0.00038884,4]
[314420203,1708327846965,-500.0,0.00038884,4]
[314420204,1708327846974,-498.77572806,0.00038884,4]
[314420205,1708327846983,-500.0,0.00038884,4]
[314420206,1708327846992,-323.84865742,0.00038884,4]
[314420207,1708327847002,-500.0,0.00038884,4]
[314420208,1708327847011,-544.33519178,0.00038884,4]
[314420209,1708327847021,-516.47671873,0.00038884,4]
[314420210,1708327847029,-500.0,0.00038884,4]
[314420211,1708327847038,-297.68637393,0.00038884,4]
[314420212,1708327847047,-176.04057519,0.00038884,4]
[314420213,1708327847056,-500.0,0.00038884,4]
[314420214,1708327847065,-540.67854189,0.00038884,4]
[314420215,1708327847074,-516.57775881,0.00038884,4]
[314420216,1708327847085,-208.97131764,0.00038884,4]
[314420217,1708327847094,-227.26778001,0.00038884,4]
[314420218,1708327847103,-500.0,0.00038884,4]
[314420219,1708327847112,-179.73649252,0.00038884,4]
[314420220,1708327847122,-500.0,0.00038884,4]
[314420221,1708327847131,-573.60476712,0.00038884,4]
[314420222,1708327847142,-187.71270086,0.00038884,4]
[314420223,1708327847151,-516.27742481,0.00038884,4]
[314420224,1708327847160,-525.46323436,0.00038884,4]
[314420225,1708327847169,-500.0,0.00038884,4]
[314420226,1708327847178,-500.0,0.00038884,4]
[314420227,1708327847187,-500.0,0.00038884,4]
[314420228,1708327847196,-500.0,0.00038884,4]
[314420229,1708327847205,-503.55311065,0.00038884,4]
[314420230,1708327847214,-579.06342686,0.00038884,4]
[314420231,1708327847223,-545.92682318,0.00038884,4]
[314420232,1708327847233,-500.0,0.00038884,4]
[314420233,1708327847242,-584.30718198,0.00038884,4]
[314420234,1708327847251,-500.0,0.00038884,4]
[314420235,1708327847260,-500.0,0.00038884,4]
[314420236,1708327847269,-500.0,0.00038884,4]
[314420237,1708327847278,-150.13058998,0.00038884,4]
[314420238,1708327847288,-428.14632553,0.00038884,4]
[314420239,1708327847297,-590.68830002,0.00038884,4]
[314420240,1708327847306,-561.25756537,0.00038884,4]
[314420241,1708327847315,-603.90398254,0.00038884,4]
[314420242,1708327847324,-500.04323787,0.00038884,4]
[314420243,1708327847333,-583.31802427,0.00038884,4]
[314420244,1708327847342,-882.8,0.00038884,4]
[314420245,1708327847351,-882.8,0.00038884,4]
[314420246,1708327847361,-882.8,0.00038884,4]
[314420247,1708327847370,-500.0,0.00038884,4]
[314420248,1708327847379,-500.0,0.00038884,4]
[314420249,1708327847388,-500.0,0.00038884,4]
[314420250,1708327847397,-221.9815409,0.00038884,4]
[314420251,1708327847406,-509.36,0.00038884,4]
[314420252,1708327847418,-517.52,0.00038884,4]
[314420253,1708327847426,-517.52,0.00038884,4]
[314420254,1708327847436,-517.52,0.00038884,4]
[314420255,1708327847445,-500.0,0.00038884,4]
[314420256,1708327847454,-500.0,0.00038884,4]
[314420257,1708327847463,-500.0,0.00038884,4]
[314420258,1708327847472,-500.0,0.00038884,4]
[314420259,1708327847481,-500.0,0.00038884,4]
[314420260,1708327847490,-500.0,0.00038884,4]
[314420261,1708327847499,-791.14,0.00038884,4]
[314420262,1708327847509,-223.54,0.00038884,4]
[314420263,1708327847517,-791.14,0.00038884,4]
[314420264,1708327847526,-791.14,0.00038884,4]
[314420265,1708327847535,-500.0,0.00038884,4]
[314420266,1708327847545,-275.15079952,0.00038884,4]
[314420267,1708327847554,-500.0,0.00038884,4]
[314420268,1708327847563,-500.0,0.00038884,4]
[314420269,1708327847572,-500.0,0.00038884,4]
[314420270,1708327847583,-500.0,0.00038884,4]
[314420271,1708327847592,-636.48,0.00038884,4]
[314420272,1708327847602,-500.0,0.00038884,4]
[314420273,1708327847611,-500.0,0.00038884,4]
[314420274,1708327847619,-500.0,0.00038884,4]
[314420275,1708327847629,-588.51671279,0.00038884,4]
[314420276,1708327847639,-500.0,0.00038884,4]
[314420277,1708327847648,-500.0,0.00038884,4]
[314420278,1708327847657,-500.0,0.00038884,4]
[314420279,1708327847667,-585.34202252,0.00038884,4]
[314420280,1708327847676,-500.0,0.00038884,4]
[314420281,1708327847687,-500.0,0.00038884,4]
[314420282,1708327847696,-500.0,0.00038884,4]
[314420283,1708327847706,-391.58,0.00038884,4]
[314420284,1708327847715,-523.61614696,0.00038884,4]
[314420285,1708327847724,-500.0,0.00038884,4]
[314420286,1708327847733,-536.03868052,0.00038884,4]
[314420287,1708327847743,-500.0,0.00038884,4]
[314420288,1708327847752,-500.0,0.00038884,4]
[314420289,1708327847762,-500.0,0.00038884,4]
[314420290,1708327847770,-500.0,0.00038884,4]
[314420291,1708327847779,-500.0,0.00038884,4]
[314420292,1708327847789,-500.0,0.00038884,4]
[314420293,1708327847797,-500.0,0.00038884,4]
[314420294,1708327847806,-533.68081103,0.00038884,4]
[314420295,1708327847818,-728.515104,0.00038885,2]
[314420296,1708327847827,-728.515104,0.00038885,2]
[314420297,1708327847836,-224.778991,0.00038885,14]
[314420298,1708327847848,-760.626391,0.00038885,14]
[314420299,1708327847857,-224.778991,0.00038885,14]
[314420300,1708327847866,-760.626391,0.00038885,14]
[314420301,1708327847876,-151.0,0.00038885,14]
[314420302,1708327847886,-151.0,0.00038885,14]
[314420303,1708327847895,-151.0,0.00038885,14]
[314420304,1708327847905,-151.0,0.00038885,14]
[314420305,1708327847914,-384.430547,0.00038885,14]
[314420306,1708327847923,-384.430547,0.00038885,14]
[314420307,1708327847932,-437.766821,0.00038885,14]
[314420308,1708327847941,-437.766821,0.00038885,14]
[314420309,1708327847950,-4466.495134,0.00038885,14]
[314420310,1708327847960,-291.645726,0.00038885,14]
[314420311,1708327847969,-4466.495134,0.00038885,14]
[314420312,1708327847978,-291.645726,0.00038885,14]
[314420313,1708327847987,-1312.351863,0.00038885,14]
[314420314,1708327847996,-1312.351863,0.00038885,14]
[314420315,1708327848006,-239.83531,0.00038885,14]
[314420316,1708327848015,-260.687997,0.00038885,14]
[314420317,1708327848025,-239.83531,0.00038885,14]
[314420318,1708327848034,-260.687997,0.00038885,14]
[314420319,1708327848043,-151.0,0.00038885,14]
[314420320,1708327848052,-210.737305,0.00038885,14]
[314420321,1708327848062,-151.0,0.00038885,14]
[314420322,1708327848072,-355.939816,0.00038885,14]
[314420323,1708327848081,-355.939816,0.00038885,14]
[314420324,1708327848090,-362.035927,0.00038885,14]
[314420325,1708327848100,-362.035927,0.00038885,14]
[314420326,1708327848109,-362.035927,0.00038885,14]
[314420327,1708327848119,-151.0,0.00038885,14]
[314420328,1708327848128,-362.035927,0.00038885,14]
[314420329,1708327848137,-151.0,0.00038885,14]
[314420330,1708327848147,-151.0,0.00038885,14]
[314420331,1708327848156,-151.0,0.00038885,14]
[314420332,1708327848165,-204.461958,0.00038885,14]
[314420333,1708327848175,-320.937392,0.00038885,14]
[314420334,1708327848184,-204.461958,0.00038885,14]
[314420335,1708327848193,-320.937392,0.00038885,14]
[314420336,1708327848203,-204.461958,0.00038885,14]
[314420337,1708327848212,-204.461958,0.00038885,14]
[314420338,1708327848221,-320.937392,0.00038885,14]
[314420339,1708327848231,-320.937392,0.00038885,14]
[314420340,1708327848241,-530.995494,0.00038885,14]
[314420341,1708327848250,-530.995494,0.00038885,14]
[314420342,1708327848259,-530.995494,0.00038885,14]
[314420343,1708327848269,-530.995494,0.00038885,14]
[314420344,1708327848279,-151.0,0.00038885,14]
[314420345,1708327848288,-151.0,0.00038885,14]
[314420346,1708327848297,-151.0,0.00038885,14]
[314420347,1708327848307,-151.0,0.00038885,14]
[314420348,1708327848316,-276.466271,0.00038885,14]
[314420349,1708327848326,-276.466271,0.00038885,14]
[314420350,1708327848335,-276.466271,0.00038885,14]
[314420351,1708327848344,-276.466271,0.00038885,14]
[314420352,1708327848353,-152.844115,0.00038885,14]
[314420353,1708327848362,-151.0,0.00038885,14]
[314420354,1708327848371,-151.0,0.00038885,14]
[314420355,1708327848381,-151.0,0.00038885,14]
[314420356,1708327848391,-151.0,0.00038885,14]
[314420357,1708327848400,-10000.0,0.00038885,14]
[314420358,1708327848409,-10000.0,0.00038885,14]
[314420359,1708327848418,-10000.0,0.00038885,14]
[314420360,1708327848427,-10000.0,0.00038885,14]
[314420361,1708327848437,-10000.0,0.00038885,14]
[314420362,1708327848446,-10000.0,0.00038885,14]
[314420363,1708327848455,-10000.0,0.00038885,14]
[314420364,1708327848465,-10000.0,0.00038885,14]
[314420365,1708327848474,-10000.0,0.00038885,14]
[314420366,1708327848483,-10000.0,0.00038885,14]
[314420367,1708327848492,-10000.0,0.00038885,14]
[314420368,1708327848501,-9414.37037,0.00038885,14]
[314420369,1708327848510,-2003.791474,0.00038885,14]
[314420370,1708327848519,-2003.791474,0.00038885,14]
[314420371,1708327848529,-2003.791474,0.00038885,14]
[314420372,1708327848538,-10000.0,0.00038885,14]
[314420373,1708327848547,-10000.0,0.00038885,14]
[314420374,1708327848556,-10000.0,0.00038885,14]
[314420375,1708327848566,-151.0,0.00038885,14]
[314420376,1708327848575,-151.0,0.00038885,14]
[314420377,1708327848587,-151.0,0.00038885,14]
[314420378,1708327848598,-151.0,0.00038885,14]
[314420379,1708327848607,-151.0,0.00038885,14]
[314420380,1708327848616,-151.0,0.00038885,14]
[314420381,1708327848626,-2003.791474,0.00038885,14]
[314420382,1708327848635,-2003.791474,0.00038885,14]
[314420383,1708327848645,-2003.791474,0.00038885,14]
[314420384,1708327848654,-10000.0,0.00038885,14]
[314420385,1708327848665,-10000.0,0.00038885,14]
[314420386,1708327848675,-10000.0,0.00038885,14]
[314420387,1708327848684,-151.0,0.00038885,14]
[314420388,1708327848694,-151.0,0.00038885,14]
[314420389,1708327848704,-151.0,0.00038885,14]
[314420390,1708327848714,-1200.749949,0.00038885,14]
[314420391,1708327848723,-1200.749949,0.00038885,14]
[314420392,1708327848732,-1200.749949,0.00038885,14]
[314420393,1708327848742,-151.0,0.00038885,14]
[314420394,1708327848751,-151.0,0.00038885,14]
[314420395,1708327848761,-151.0,0.00038885,14]
[314420396,1708327848770,-429.600188,0.00038885,14]
[314420397,1708327848779,-429.600188,0.00038885,14]
[314420398,1708327848789,-1200.749949,0.00038885,14]
[314420399,1708327848798,-151.0,0.00038885,14]
[314420400,1708327848807,-233.928303,0.00038885,14]
[314420401,1708327848816,-429.600188,0.00038885,14]
[314420402,1708327848825,-1200.749949,0.00038885,14]
[314420403,1708327848835,-1200.749949,0.00038885,14]
[314420404,1708327848844,-429.600188,0.00038885,14]
[314420405,1708327848853,-310.20643665,0.00038885,14]
[314420406,1708327848873,-119.39375135,0.00038885,14]
[314420407,1708327848882,-429.600188,0.00038885,14]
[314420408,1708327848891,-151.0,0.00038885,14]
[314420409,1708327848901,-151.0,0.00038885,14]
[314420410,1708327848910,-151.0,0.00038885,14]
[314420411,1708327848919,-433.162241,0.00038885,14]
[314420412,1708327848929,-433.162241,0.00038885,14]
[314420413,1708327848938,-433.162241,0.00038885,14]
[314420414,1708327848948,-151.0,0.00038885,14]
[314420415,1708327848957,-151.0,0.00038885,14]
[314420416,1708327848967,-151.0,0.00038885,14]
[314420417,1708327848976,-433.162241,0.00038885,14]
[314420418,1708327848986,-433.162241,0.00038885,14]
[314420419,1708327848995,-433.162241,0.00038885,14]
[314420420,1708327849005,-151.0,0.00038885,14]
[314420421,1708327849015,-151.0,0.00038885,14]
[314420422,1708327849024,-151.0,0.00038885,14]
[314420423,1708327849033,-151.0,0.00038885,14]
[314420424,1708327849043,-151.0,0.00038885,14]
[314420425,1708327849052,-151.0,0.00038885,14]
[314420426,1708327849062,-151.0,0.00038885,14]
[314420427,1708327849071,-151.0,0.00038885,14]
[314420428,1708327849081,-151.0,0.00038885,14]
[314420429,1708327849090,-151.0,0.00038885,14]
[314420430,1708327849100,-151.0,0.00038885,14]
[314420431,1708327849109,-1145.847231,0.00038885,14]
[314420432,1708327849119,-1145.847231,0.00038885,14]
[314420433,1708327849129,-1145.847231,0.00038885,14]
[314420434,1708327849138,-244.090164,0.00038885,14]
[314420435,1708327849148,-244.090164,0.00038885,14]
[314420436,1708327849158,-244.090164,0.00038885,14]
[314420437,1708327849168,-233.88007,0.00038885,14]
[314420438,1708327849177,-151.0,0.00038885,14]
[314420439,1708327849186,-233.88007,0.00038885,14]
[314420440,1708327849196,-151.0,0.00038885,14]
[314420441,1708327849205,-1145.847231,0.00038885,14]
[314420442,1708327849215,-1145.847231,0.00038885,14]
[314420443,1708327849224,-1145.847231,0.00038885,14]
[314420444,1708327849369,-244.090164,0.00038885,14]
[314420445,1708327849382,-244.090164,0.00038885,14]
[314420446,1708327849392,-244.090164,0.00038885,14]
[314420447,1708327849402,-233.88007,0.00038885,14]
[314420448,1708327849411,-233.88007,0.00038885,14]
[314420449,1708327849420,-409.59128,0.00038885,14]
[314420450,1708327849430,-409.59128,0.00038885,14]
[314420451,1708327849439,-409.59128,0.00038885,14]
[314420452,1708327849448,-409.59128,0.00038885,14]
[314420453,1708327849458,-227.827027,0.00038885,14]
[314420454,1708327849467,-227.827027,0.00038885,14]
[314420455,1708327849476,-227.827027,0.00038885,14]
[314420456,1708327849485,-227.827027,0.00038885,14]
[314420457,1708327849494,-151.0,0.00038885,14]
[314420458,1708327849503,-151.0,0.00038885,14]
[314420459,1708327849511,-151.0,0.00038885,14]
[314420460,1708327849521,-151.0,0.00038885,14]
[314420461,1708327849530,-279.859473,0.00038885,14]
[314420462,1708327849539,-279.859473,0.00038885,14]
[314420463,1708327849549,-461.420191,0.00038885,14]
[314420464,1708327849558,-461.420191,0.00038885,14]
[314420465,1708327849567,-151.0,0.00038885,7]
[314420466,1708327849577,-151.0,0.00038885,7]
[314420467,1708327849588,-279.859473,0.00038885,14]
[314420468,1708327849597,-279.859473,0.00038885,14]
[314420469,1708327849606,-461.420191,0.00038885,14]
[314420470,1708327849615,-461.420191,0.00038885,14]
[314420471,1708327849626,-190.881713,0.00038885,14]
[314420472,1708327849635,-190.881713,0.00038885,14]
[314420473,1708327849644,-190.881713,0.00038885,14]
[314420474,1708327849653,-190.881713,0.00038885,14]
[314420475,1708327849664,-277.238318,0.00038885,14]
[314420476,1708327849673,-277.238318,0.00038885,14]
[314420477,1708327849684,-4877.567598,0.00038885,14]
[314420478,1708327849693,-4877.567598,0.00038885,14]
[314420479,1708327849702,-277.238318,0.00038885,14]
[314420480,1708327849711,-277.238318,0.00038885,14]
[314420481,1708327849721,-4877.567598,0.00038885,14]
[314420482,1708327849730,-4877.567598,0.00038885,14]
[314420483,1708327849739,-449.573152,0.00038885,14]
[314420484,1708327849749,-449.573152,0.00038885,14]
[314420485,1708327849759,-1536.370665,0.00038885,14]
[314420486,1708327849768,-1536.370665,0.00038885,14]
[314420487,1708327849777,-449.573152,0.00038885,14]
[314420488,1708327849786,-449.573152,0.00038885,14]
[314420489,1708327849795,-460.550288,0.00038885,14]
[314420490,1708327849804,-1536.370665,0.00038885,14]
[314420491,1708327849813,-460.550288,0.00038885,14]
[314420492,1708327849822,-1536.370665,0.00038885,14]
[314420493,1708327849831,-460.550288,0.00038885,14]
[314420494,1708327849840,-460.550288,0.00038885,14]
[314420495,1708327849849,-460.550288,0.00038885,14]
[314420496,1708327849858,-460.550288,0.00038885,14]
[314420497,1708327849867,-1670.552094,0.00038885,14]
[314420498,1708327849876,-1670.552094,0.00038885,14]
[314420499,1708327849885,-1670.552094,0.00038885,14]
[314420500,1708327849895,-151.0,0.00038885,14]
[314420501,1708327849904,-151.0,0.00038885,14]
[314420502,1708327849913,-1670.552094,0.00038885,14]
[314420503,1708327849923,-1670.552094,0.00038885,14]
[314420504,1708327849932,-1670.552094,0.00038885,14]
[314420505,1708327849941,-1231.334108,0.00038885,14]
[314420506,1708327849951,-1231.334108,0.00038885,14]
[314420507,1708327849960,-1231.334108,0.00038885,14]
[314420508,1708327849969,-1231.334108,0.00038885,14]
[314420509,1708327849979,-1231.334108,0.00038885,14]
[314420510,1708327849989,-1231.334108,0.00038885,14]
[314420511,1708327849998,-342.828892,0.00038885,14]
[314420512,1708327850008,-342.828892,0.00038885,14]
[314420513,1708327850017,-342.828892,0.00038885,14]
[314420514,1708327850026,-7898.448424,0.00038885,14]
[314420515,1708327850036,-7898.448424,0.00038885,14]
[314420516,1708327850045,-7898.448424,0.00038885,14]
[314420517,1708327850055,-342.828892,0.00038885,14]
[314420518,1708327850064,-342.828892,0.00038885,14]
[314420519,1708327850074,-1293.61516,0.00038885,14]
[314420520,1708327850084,-342.828892,0.00038885,14]
[314420521,1708327850093,-1293.61516,0.00038885,14]
[314420522,1708327850103,-1293.61516,0.00038885,14]
[314420523,1708327850114,-7898.448424,0.00038885,14]
[314420524,1708327850124,-7898.448424,0.00038885,14]
[314420525,1708327850134,-7898.448424,0.00038885,14]
[314420526,1708327850144,-1293.61516,0.00038885,14]
[314420527,1708327850153,-1293.61516,0.00038885,14]
[314420528,1708327850163,-1293.61516,0.00038885,14]
[314420529,1708327850172,-259.451851,0.00038885,14]
[314420530,1708327850182,-259.451851,0.00038885,14]
[314420531,1708327850191,-259.451851,0.00038885,14]
[314420532,1708327850201,-269610.11665264,0.00038885,4]
[314420533,1708327881006,230.93981503,5e-05,2]
[314420535,1708328051488,192.44984586,5e-05,2]
[314420536,1708328063488,192.44984586,5e-05,2]
[314420539,1708328083486,155.0,5e-05,2]
[314420540,1708328103491,155.0,5e-05,2]
[314420542,1708328124887,155.0,5e-05,2]
[314420544,1708328142914,155.0,5e-05,2]
[314420547,1708328160886,155.0,5e-05,2]
[314420549,1708328179004,187.3331116,5e-05,2]
[314420555,1708328448079,17140.06070916,5e-05,2]
[314420556,1708328464575,14283.3839243,5e-05,2]
[314420557,1708328482589,14283.3839243,5e-05,2]
[314420560,1708328502718,7441.64302456,5e-05,2]
[314420562,1708328520605,7441.64302456,5e-05,2]
[314420563,1708328538603,7441.64302456,5e-05,2]
[314420566,1708328562605,7441.64302456,5e-05,2]
[314420567,1708328584611,7441.64302456,5e-05,2]
[314420570,1708328610615,7441.64302456,5e-05,2]
[314420572,1708328628617,7441.64302456,5e-05,2]
[314420573,1708328644614,7441.64302456,5e-05,2]
[314420576,1708328664625,7441.64302456,5e-05,2]
[314420577,1708328678624,7441.64302456,5e-05,2]
[314420579,1708328823529,-155.0,0.00029999,2]
[314420580,1708328823551,-514.91029993,0.0003,2]
[314420581,1708328825717,550.0,0.00025,3]
[314420582,1708328826798,600.0,0.00027,3]
[314420583,1708328827911,650.0,0.00029,3]
[314420584,1708328951142,-698.47478438,0.00031,3]
[314420585,1708328956101,-1.52521562,0.00031,3]
[314420586,1708328956124,-183.4263793,0.00032699,2]
[314420587,1708328956143,-1043.646022,0.00032799,4]
[314420588,1708328956163,-359.78986537,0.00032799,4]
[314420589,1708328964099,-155.0,0.00032698,4]
[314420590,1708328964119,-75.16136373,0.00032799,4]
[314420591,1708328966177,-555.21294356,0.00032799,4]
[314420592,1708328966198,-158.03932348,0.000329,2]
[314420593,1708328966218,-4045.20570584,0.000329,2]
[314420600,1708329032006,-1036.81213853,0.000329,2]
[314420601,1708329032017,-500.0,0.000329,2]
[314420602,1708329032027,-750.0,0.00033,3]
[314420603,1708329032036,-419.0,0.00033,2]
[314420604,1708329032045,-768.67781071,0.00033,4]
[314420605,1708329032054,-419.0,0.00033151,2]
[314420606,1708329032063,-158.03932342,0.00033321,2]
[314420607,1708329032248,-1538.0,0.000337,2]
[314420608,1708329032257,-158.03932342,0.00033742,2]
[314420609,1708329032267,-615.4,0.0003384,2]
[314420610,1708329032277,-158.03932342,0.00034163,2]
[314420611,1708329032286,-419.0,0.00034521,2]
[314420613,1708329032295,-158.03932342,0.00034584,2]
[314420615,1708329032304,-1022.95663426,0.00035,2]
[314420617,1708329032313,-800.0,0.00035,3]
[314420618,1708329032322,-158.03932342,0.00035005,2]
[314420620,1708329032332,-158.03932342,0.00035426,2]
[314420622,1708329032341,-150.0,0.00035545,2]
[314420624,1708329032351,-155.0,0.00035636,4]
[314420626,1708329032360,-872.0,0.00035637,2]
[314420628,1708329032369,-23900.0,0.00035637,2]
[314420630,1708329032378,-200.0,0.00035658,2]
[314420632,1708329032388,-226.35,0.00035677,2]
[314420634,1708329032397,-1408.11,0.00035694,2]
[314420636,1708329032407,-155.89,0.0003572,2]
[314420638,1708329032416,-201.95,0.00035731,10]
[314420639,1708329032425,-150.0,0.00035739,2]
[314420640,1708329032435,-784.43,0.0003577,2]
[314420641,1708329032444,-250.0,0.00035784,2]
[314420642,1708329032453,-158.03932342,0.00035848,2]
[314420643,1708329032462,-226.35,0.00035883,2]
[314420644,1708329032471,-372.74,0.00035901,2]
[314420645,1708329032480,-153.99,0.0003596,2]
[314420646,1708329032489,-500.0,0.00035972,2]
[314420647,1708329032500,-160.26,0.00036046,2]
[314420648,1708329032510,-226.35,0.00036089,2]
[314420649,1708329032520,-273.35480565,0.00036093,2]
[314420650,1708329032529,-615.4,0.00036104,2]
[314420651,1708329032539,-425.0,0.00036247,2]
[314420652,1708329032549,-158.03932342,0.00036269,2]
[314420653,1708329032558,-153.99,0.00036286,2]
[314420654,1708329032568,-226.35,0.00036295,2]
[314420655,1708329032577,-2000.0,0.00036388,2]
[314420656,1708329032586,-250.0,0.00036388,2]
[314420657,1708329032595,-463.74,0.00036468,2]
[314420658,1708329032605,-156.6,0.00036475,2]
[314420660,1708329032614,-621.9,0.00036492,2]
[314420662,1708329032623,-226.35,0.00036501,2]
[314420664,1708329032632,-500.0,0.00036503,2]
[314420666,1708329032641,-160.0,0.00036545,2]
[314420668,1708329032651,-153.99,0.00036613,2]
[314420670,1708329032661,-784.57385635,0.00036655,2]
[314420672,1708329032671,-158.03932342,0.0003669,2]
[314420674,1708329032680,-226.35,0.00036708,2]
[314420676,1708329032689,-156.65,0.00036737,2]
[314420678,1708329032699,-360.85,0.0003687,2]
[314420680,1708329032708,-226.35,0.00036914,2]
[314420682,1708329032718,-153.99,0.0003694,2]
[314420684,1708329032726,-850.0,0.00037,3]
[314420686,1708329032735,-1000.0,0.00037,2]
[314420688,1708329032744,-156.65,0.00037043,2]
[314420690,1708329032754,-158.03932342,0.00037111,2]
[314420692,1708329032764,-226.35,0.0003712,2]
[314420694,1708329032773,-168.62,0.00037166,2]
[314420696,1708329032782,-372.74,0.00037229,2]
[314420698,1708329032791,-153.99,0.00037267,2]
[314420700,1708329032801,-152.0,0.00037286,3]
[314420702,1708329032810,-226.35,0.00037326,2]
[314420704,1708329032819,-156.65,0.00037349,2]
[314420706,1708329032828,-605.900015,0.00037487,2]
[314420708,1708329032837,-198.262254,0.00037487,2]
[314420710,1708329032847,-158.03932342,0.00037532,2]
[314420712,1708329032856,-226.35,0.00037532,2]
[314420714,1708329032866,-153.99,0.00037594,2]
[314420716,1708329032875,-156.65,0.00037655,2]
[314420718,1708329032884,-7761.80965425,0.00037659,2]
[314420720,1708329032893,-22022.6777,0.00037661,2]
[314420722,1708329032904,-1627.4488316,0.00037759,4]
[314420724,1708329032913,-204.14700503,0.00037759,4]
[314420726,1708329032923,-333.30349026,0.0003776,4]
[314420728,1708329032932,-55553.5131,0.00037761,2]
[314420729,1708329032943,-300.0,0.000378,2]
[314420730,1708329032952,-323.7501147,0.000378,2]
[314420731,1708329032961,-155.0,0.000379,2]
[314420732,1708329032971,-177.53,0.000379,2]
[314420733,1708329032980,-3000.0,0.000379,2]
[314420734,1708329032989,-4750.1856175,0.000379,2]
[314420735,1708329032998,-264.71552263,0.000379,2]
[314420736,1708329033008,-4105.79854593,0.00037903,2]
[314420737,1708329033018,-153.99,0.00037921,2]
[314420738,1708329033027,-160.26,0.00037924,2]
[314420739,1708329033036,-158.03932342,0.00037953,2]
[314420740,1708329033046,-605.900015,0.00037956,2]
[314420741,1708329033055,-1837.17395494,0.00037961,8]
[314420742,1708329033064,-2393.75341565,0.00037961,7]
[314420743,1708329033074,-275.8484508,0.00037961,7]
[314420744,1708329033083,-564.37129007,0.00037961,8]
[314420745,1708329033092,-156.65,0.00037961,2]
[314420746,1708329033101,-690.0,0.00038,2]
[314420747,1708329033111,-166.33759763,0.00038,2]
[314420748,1708329033121,-86477.63328705,0.00038,4]
[314420749,1708329033130,-38000.0,0.00038,5]
[314420750,1708329033139,-224.5960252,0.00038,2]
[314420752,1708329033148,-224.5960252,0.00038,2]
[314420753,1708329033159,-224.5960252,0.00038,2]
[314420755,1708329033168,-224.5960252,0.00038,2]
[314420757,1708329033177,-224.5960252,0.00038,2]
[314420759,1708329033186,-224.5960252,0.00038,2]
[314420761,1708329033195,-224.5960252,0.00038,2]
[314420763,1708329033204,-224.5960252,0.00038,2]
[314420765,1708329033213,-224.5960252,0.00038,2]
[314420767,1708329033222,-224.5960252,0.00038,2]
[314420769,1708329033232,-224.5960252,0.00038,2]
[314420771,1708329033241,-224.5960252,0.00038,2]
[314420772,1708329033250,-224.5960252,0.00038,2]
[314420773,1708329033259,-224.5960252,0.00038,2]
[314420774,1708329033268,-224.5960252,0.00038,2]
[314420775,1708329033278,-224.5960252,0.00038,2]
[314420776,1708329033287,-224.5960252,0.00038,2]
[314420777,1708329033296,-224.5960252,0.00038,2]
[314420778,1708329033305,-224.5960252,0.00038,2]
[314420779,1708329033315,-224.5960252,0.00038,2]
[314420780,1708329033324,-224.5960252,0.00038,2]
[314420781,1708329033334,-224.5960252,0.00038,2]
[314420782,1708329033343,-224.5960252,0.00038,2]